fUST/lending_fUST_20250615
["ID","MTS","AMOUNT","RATE_DAILY","PERIOD"]
[365846340,1749954648494,-460.0,0.00023287,4]
[365846341,1749954648503,-340.0,0.00023287,4]
[365846343,1749954648513,-460.0,0.00023287,4]
[365846345,1749954648523,-460.0,0.00023287,4]
[365846347,1749954648533,-460.0,0.00023287,4]
[365846350,1749954648543,-460.89,0.00023287,4]
[365846351,1749954648552,-460.0,0.00023287,4]
[365846354,1749954648562,-460.0,0.00023287,4]
[365846355,1749954648571,-460.0,0.00023287,4]
[365846357,1749954648581,-460.0,0.00023287,4]
[365846359,1749954648592,-590.85,0.00023287,4]
[365846362,1749954648602,-582.37,0.00023287,4]
[365846364,1749954648613,-460.0,0.00023287,4]
[365846366,1749954648622,-270.0,0.00023287,4]
[365846368,1749954648631,-1067.47,0.00023287,4]
[365846370,1749954648640,-460.0,0.00023287,4]
[365846372,1749954648650,-579.57692072,0.00023287,4]
[365846374,1749954648660,-460.0,0.00023287,4]
[365846376,1749954648669,-758.84,0.00023287,4]
[365846378,1749954648678,-460.0,0.00023287,4]
[365846380,1749954648688,-460.0,0.00023287,4]
[365846382,1749954648697,-460.0,0.00023287,4]
[365846384,1749954648706,-4092.25,0.00023287,4]
[365846386,1749954648715,-460.0,0.00023287,4]
[365846388,1749954648727,-2832.93,0.00023287,4]
[365846390,1749954648737,-460.0,0.00023287,4]
[365846392,1749954648746,-804.27,0.00023287,4]
[365846394,1749954648756,-831.16,0.00023287,4]
[365846396,1749954648767,-566.54,0.00023287,2]
[365846398,1749954648777,-684.13,0.00023287,4]
[365846400,1749954648785,-816.86,0.00023287,4]
[365846402,1749954648795,-609.0,0.00023287,4]
[365846404,1749954648806,-460.0,0.00023287,4]
[365846406,1749954648815,-577.95,0.00023287,4]
[365846408,1749954648824,-460.0,0.00023287,4]
[365846410,1749954648833,-1734.77,0.00023287,4]
[365846412,1749954648842,-481.07,0.00023287,4]
[365846414,1749954648852,-460.0,0.00023287,4]
[365846416,1749954648861,-460.0,0.00023287,4]
[365846418,1749954648870,-460.0,0.00023287,4]
[365846420,1749954648879,-460.0,0.00023287,4]
[365846422,1749954648888,-695.4,0.00023287,4]
[365846424,1749954648898,-3293.23,0.00023287,4]
[365846426,1749954648907,-460.0,0.00023287,4]
[365846428,1749954648916,-2865.98,0.00023287,4]
[365846430,1749954648925,-460.0,0.00023287,4]
[365846432,1749954648935,-3795.48,0.00023287,4]
[365846434,1749954648944,-1832.68,0.00023287,4]
[365846436,1749954648953,-460.0,0.00023287,4]
[365846438,1749954648962,-801.64,0.00023287,4]
[365846440,1749954648971,-460.0,0.00023287,4]
[365846442,1749954648980,-1305.94,0.00023287,4]
[365846444,1749954648989,-460.0,0.00023287,4]
[365846446,1749954648998,-460.0,0.00023287,4]
[365846448,1749954649007,-1468.44,0.00023287,4]
[365846450,1749954649017,-460.0,0.00023287,4]
[365846452,1749954649026,-460.0,0.00023287,4]
[365846454,1749954649036,-876.43,0.00023287,4]
[365846456,1749954649046,-460.0,0.00023287,4]
[365846458,1749954649055,-723.62,0.00023287,4]
[365846460,1749954649064,-460.0,0.00023287,4]
[365846462,1749954649073,-460.0,0.00023287,4]
[365846464,1749954649082,-487.73,0.00023287,4]
[365846466,1749954649091,-460.0,0.00023287,4]
[365846468,1749954649101,-478.49,0.00023287,4]
[365846470,1749954649110,-460.0,0.00023287,4]
[365846472,1749954649120,-1956.94,0.00023287,4]
[365846474,1749954649129,-460.0,0.00023287,4]
[365846476,1749954649138,-460.0,0.00023287,4]
[365846478,1749954649147,-460.0,0.00023287,4]
[365846479,1749954649156,-599.55,0.00023287,4]
[365846482,1749954649165,-460.0,0.00023287,4]
[365846484,1749954649175,-152.72351,0.00023287,7]
[365846485,1749954649184,-771.81,0.00023287,4]
[365846487,1749954649193,-547.36,0.00023287,4]
[365846489,1749954649203,-460.0,0.00023287,4]
[365846491,1749954649212,-460.0,0.00023287,4]
[365846493,1749954649221,-550.37,0.00023287,4]
[365846495,1749954649230,-242.72165548,0.00023287,4]
[365846498,1749954649240,-848.24,0.00023287,4]
[365846500,1749954649249,-1181.15,0.00023287,4]
[365846502,1749954649258,-1788.48,0.00023287,4]
[365846504,1749954649267,-3035.77,0.00023287,4]
[365846506,1749954649277,-573.35,0.00023287,4]
[365846508,1749954649285,-414.3988018,0.00023287,4]
[365846510,1749954649296,-581.07078116,0.00023287,4]
[365846512,1749954649305,-2351.53,0.00023287,4]
[365846514,1749954649314,-460.0,0.00023287,4]
[365846515,1749954649323,-460.0,0.00023287,4]
[365846518,1749954649332,-474.97,0.00023287,4]
[365846519,1749954649341,-599.49,0.00023287,4]
[365846521,1749954649350,-460.0,0.00023287,4]
[365846523,1749954649359,-497.51,0.00023287,4]
[365846525,1749954649368,-460.0,0.00023287,4]
[365846527,1749954649378,-2043.55,0.00023287,4]
[365846529,1749954649387,-460.0,0.00023287,4]
[365846531,1749954649396,-683.09,0.00023287,4]
[365846533,1749954649405,-500.0,0.00023289,2]
[365846535,1749954649414,-82521.88,0.000233,7]
[365846537,1749954649423,-151.0,0.000233,7]
[365846539,1749954649432,-151.0,0.000233,7]
[365846541,1749954649442,-151.0,0.000233,7]
[365846543,1749954649451,-151.0,0.000233,7]
[365846545,1749954649460,-379.67679989,0.000233,15]
[365846547,1749954649469,-151.0,0.000233,7]
[365846549,1749954649478,-151.0,0.000233,7]
[365846551,1749954649488,-639.0,0.000233,2]
[365846553,1749954649497,-151.0,0.000233,7]
[365846555,1749954649506,-151.0,0.000233,7]
[365846557,1749954649515,-151.0,0.000233,7]
[365846559,1749954649525,-501.82273507,0.00023321,2]
[365846561,1749954649534,-158.50228441,0.00023321,2]
[365846563,1749954649543,-1000.0,0.00023321,2]
[365846565,1749954649552,-1000.0,0.00023321,2]
[365846566,1749954649561,-500.0,0.00023334,2]
[365846567,1749954649570,-209.1601717,0.00023342,2]
[365846568,1749954649579,-500.0,0.00023346,2]
[365846569,1749954649588,-151.0,0.0002335,7]
[365846570,1749954649597,-204.472412,0.0002335,7]
[365846571,1749954649606,-204.472412,0.0002335,7]
[365846572,1749954649616,-215.0738,0.00023356,2]
[365846573,1749954649624,-653.0,0.00023358,2]
[365846574,1749954649633,-2160.0,0.00023358,2]
[365846575,1749954649642,-964.0,0.00023358,2]
[365846576,1749954649651,-500.0,0.00023363,2]
[365846577,1749954649661,-194.06246095,0.00023391,2]
[365846578,1749954649670,-1330.536389,0.00023442,3]
[365846579,1749954649679,-3755.99599084,0.00023496,2]
[365846580,1749954649688,-2005.31,0.000235,3]
[365846581,1749954649696,-500.0,0.0002353,2]
[365846582,1749954649706,-500.0,0.00023533,2]
[365846583,1749954649715,-151.0,0.0002356,7]
[365846584,1749954649729,-204.472412,0.0002356,7]
[365846585,1749954649738,-204.472412,0.0002356,7]
[365846586,1749954649747,-12150.41,0.0002356,5]
[365846587,1749954649756,-460.0,0.00023561,4]
[365846588,1749954649768,-460.0,0.00023561,4]
[365846589,1749954649777,-460.0,0.00023561,4]
[365846590,1749954649786,-599.19493693,0.00023561,4]
[365846591,1749954649796,-215.0265787,0.00023561,4]
[365846592,1749954649805,-460.89,0.00023561,4]
[365846593,1749954649814,-460.0,0.00023561,4]
[365846594,1749954649823,-600.0,0.00023561,4]
[365846595,1749954649832,-460.0,0.00023561,4]
[365846596,1749954649841,-460.0,0.00023561,4]
[365846597,1749954649851,-590.85,0.00023561,4]
[365846598,1749954649860,-582.37,0.00023561,4]
[365846599,1749954649869,-460.0,0.00023561,4]
[365846600,1749954649878,-1067.47,0.00023561,4]
[365846601,1749954649888,-250.0,0.00023561,4]
[365846602,1749954649897,-460.0,0.00023561,4]
[365846603,1749954649907,-758.84,0.00023561,4]
[365846604,1749954649916,-265.17858799,0.00023561,4]
[365846605,1749954649925,-363.89655839,0.00023561,4]
[365846606,1749954649934,-460.0,0.00023561,4]
[365846607,1749954649943,-4092.25,0.00023561,4]
[365846608,1749954649953,-460.0,0.00023561,4]
[365846609,1749954649962,-2832.93,0.00023561,4]
[365846610,1749954649972,-460.0,0.00023561,4]
[365846611,1749954649981,-804.27,0.00023561,4]
[365846612,1749954649990,-831.16,0.00023561,4]
[365846613,1749954649999,-566.54,0.00023561,2]
[365846614,1749954650009,-684.13,0.00023561,4]
[365846615,1749954650019,-816.86,0.00023561,4]
[365846616,1749954650028,-609.0,0.00023561,4]
[365846617,1749954650037,-460.0,0.00023561,4]
[365846618,1749954650046,-577.95,0.00023561,4]
[365846619,1749954650055,-460.0,0.00023561,4]
[365846620,1749954650064,-1734.77,0.00023561,4]
[365846621,1749954650072,-481.07,0.00023561,4]
[365846622,1749954650081,-460.0,0.00023561,4]
[365846623,1749954650090,-460.0,0.00023561,4]
[365846624,1749954650099,-460.0,0.00023561,4]
[365846625,1749954650108,-460.0,0.00023561,4]
[365846626,1749954650117,-695.4,0.00023561,4]
[365846627,1749954650126,-3293.23,0.00023561,4]
[365846628,1749954650135,-460.0,0.00023561,4]
[365846629,1749954650144,-2865.98,0.00023561,4]
[365846630,1749954650153,-460.0,0.00023561,4]
[365846631,1749954650162,-3795.48,0.00023561,4]
[365846632,1749954650171,-1832.68,0.00023561,4]
[365846633,1749954650180,-515.99245452,0.00023561,4]
[365846634,1749954650189,-801.64,0.00023561,4]
[365846635,1749954650198,-399.74720106,0.00023561,4]
[365846636,1749954650207,-1305.94,0.00023561,4]
[365846637,1749954650216,-250.0,0.00023561,4]
[365846638,1749954650225,-460.0,0.00023561,4]
[365846639,1749954650234,-1468.44,0.00023561,4]
[365846640,1749954650243,-460.0,0.00023561,4]
[365846641,1749954650251,-460.0,0.00023561,4]
[365846642,1749954650260,-876.43,0.00023561,4]
[365846643,1749954650270,-460.0,0.00023561,4]
[365846644,1749954650279,-723.62,0.00023561,4]
[365846645,1749954650288,-460.0,0.00023561,4]
[365846646,1749954650297,-460.0,0.00023561,4]
[365846647,1749954650306,-487.73,0.00023561,4]
[365846648,1749954650315,-370.25713545,0.00023561,4]
[365846649,1749954650324,-478.49,0.00023561,4]
[365846650,1749954650334,-460.0,0.00023561,4]
[365846651,1749954650343,-1956.94,0.00023561,4]
[365846652,1749954650352,-460.0,0.00023561,4]
[365846653,1749954650361,-460.0,0.00023561,4]
[365846654,1749954650370,-460.0,0.00023561,4]
[365846655,1749954650474,-599.55,0.00023561,4]
[365846656,1749954650484,-460.0,0.00023561,4]
[365846657,1749954650494,-771.81,0.00023561,4]
[365846658,1749954650504,-547.36,0.00023561,4]
[365846659,1749954650514,-460.0,0.00023561,4]
[365846660,1749954650523,-460.0,0.00023561,4]
[365846661,1749954650532,-550.37,0.00023561,4]
[365846662,1749954650541,-848.24,0.00023561,4]
[365846663,1749954650551,-1181.15,0.00023561,4]
[365846664,1749954650561,-1788.48,0.00023561,4]
[365846665,1749954650570,-3035.77,0.00023561,4]
[365846666,1749954650580,-573.35,0.00023561,4]
[365846667,1749954650589,-2351.53,0.00023561,4]
[365846668,1749954650599,-460.0,0.00023561,4]
[365846669,1749954650608,-460.0,0.00023561,4]
[365846670,1749954650617,-474.97,0.00023561,4]
[365846671,1749954650627,-599.49,0.00023561,4]
[365846672,1749954650637,-174.60160541,0.00023561,4]
[365846673,1749954650646,-497.51,0.00023561,4]
[365846674,1749954650655,-460.0,0.00023561,4]
[365846675,1749954650665,-2043.55,0.00023561,4]
[365846676,1749954650674,-460.0,0.00023561,4]
[365846677,1749954650683,-683.09,0.00023561,4]
[365846678,1749954650693,-501.33803323,0.00023568,2]
[365846679,1749954650703,-1500.0,0.00023568,2]
[365846680,1749954650712,-1800.0,0.00023568,2]
[365846681,1749954650726,-501.2673906,0.00023568,2]
[365846682,1749954650735,-394.24716771,0.00023568,2]
[365846683,1749954650744,-1500.0,0.00023568,2]
[365846684,1749954650753,-500.0,0.00023574,2]
[365846685,1749954650763,-500.0,0.00023575,2]
[365846686,1749954650773,-500.0,0.00023598,2]
[365846687,1749954650783,-152.88997,0.000236,7]
[365846688,1749954650792,-204.472412,0.000236,7]
[365846689,1749954650802,-204.472416,0.000236,7]
[365846690,1749954650811,-2000.0,0.000236,3]
[365846691,1749954650820,-845.25843836,0.000236,3]
[365846692,1749954650829,-500.0,0.00023681,2]
[365846693,1749954650838,-15675.2111816,0.00023687,2]
[365846694,1749954650847,-500.0,0.00023689,2]
[365846695,1749954650857,-2000.0,0.000237,3]
[365846696,1749954650866,-500.0,0.00023739,2]
[365846697,1749954650875,-3923.45,0.00023747,2]
[365846698,1749954650886,-500.0,0.0002376,2]
[365846699,1749954650896,-1813.70455926,0.0002378,2]
[365846700,1749954650905,-9932.13591779,0.0002378,5]
[365846701,1749954650914,-213.32089821,0.0002378,2]
[365846702,1749954650923,-160.0,0.0002378,2]
[365846703,1749954650932,-33180.42245565,0.00023788,2]
[365846704,1749954651044,-982.54325244,0.00023788,2]
[365846705,1749954651185,-460.0,0.00021917,4]
[365846706,1749954651196,-192.86879254,0.00022191,4]
[365846707,1749954651207,-306.43579412,0.00022191,4]
[365846708,1749954651218,-460.0,0.00022465,4]
[365846709,1749954651228,-2231.34,0.00022465,4]
[365846710,1749954651237,-460.0,0.00022739,4]
[365846711,1749954651246,-2231.34,0.00022739,4]
[365846712,1749954651256,-460.0,0.00023013,4]
[365846713,1749954651266,-1756.11790383,0.00023013,4]
[365846725,1749954651471,-475.22209617,0.00023013,4]
[365846727,1749954651480,-460.0,0.00023287,4]
[365846729,1749954651490,-2231.34,0.00023287,4]
[365846731,1749954651499,-460.0,0.00023561,4]
[365846733,1749954651508,-2231.34,0.00023561,4]
[365846735,1749954651518,-2120.28113072,0.00023788,2]
[365846738,1749954651530,-6649.85701993,0.00023788,2]
[365846740,1749954651540,-2744.32,0.000238,2]
[365846742,1749954651549,-2000.0,0.000238,3]
[365846744,1749954651558,-7442.37817871,0.000238,2]
[365846746,1749954651569,-1668.97019674,0.000238,2]
[365846748,1749954651580,-609.52765627,0.000238,2]
[365846750,1749954651591,-6170.61595541,0.000238,2]
[365846957,1749954948359,155.32172149,0.0002502,60]
[365846969,1749955343135,170.714526,0.00013699,2]
[365846973,1749955631096,-973.8161313,0.00019986,2]
[365846974,1749955631118,-166.71607011,0.00020087,2]
[365846975,1749955631140,-170.714526,0.00020187,2]
[365846976,1749955631161,-244.012001,0.0002063,2]
[365846977,1749955631184,-415.95519949,0.00020838,2]
[365846978,1749955631214,-201.95914067,0.00020838,2]
[365846979,1749955639077,-320.16898819,0.00020838,2]
[365846980,1749955643217,-49.33732675,0.00020838,2]
[365846981,1749955643238,-305.52643841,0.00020878,2]
[365846982,1749955644205,-110.37459739,0.00020878,2]
[365846983,1749955644227,-275.0,0.00021063,2]
[365846984,1749955644249,-500.0,0.00021154,2]
[365846985,1749955644270,-201.9555179,0.00021332,2]
[365846986,1749955644291,-187.87565696,0.00021461,2]
[365846987,1749955644313,-275.0,0.00021558,2]
[365846988,1749955644335,-275.0,0.00021658,2]
[365846989,1749955644356,-275.0,0.00021772,2]
[365846990,1749955644377,-165.89792811,0.00021817,2]
[365846991,1749955644398,-217.31451357,0.00021817,2]
[365846992,1749955644423,-207.4,0.00021903,2]
[365846993,1749955644445,-300.0,0.00021914,2]
[365846994,1749955644466,-1200.0,0.00021915,2]
[365846995,1749955644489,-300.0,0.00021915,2]
[365846996,1749955644512,-500.0,0.00021916,2]
[365846997,1749955644534,-500.0,0.00021916,2]
[365846998,1749955644557,-500.0,0.00021916,2]
[365846999,1749955644580,-500.0,0.00021916,2]
[365847000,1749955644602,-500.0,0.00021916,2]
[365847001,1749955644624,-500.0,0.00021916,2]
[365847002,1749955644646,-500.0,0.00021916,2]
[365847003,1749955644668,-500.0,0.00021916,2]
[365847004,1749955644690,-226.09748195,0.00021916,2]
[365847005,1749955644713,-106.37137533,0.00021916,2]
[365847021,1749955762792,-247.45697488,0.00019012,2]
[365847022,1749955766105,-2440.9056,0.00019012,2]
[365847023,1749955771102,-56.25539658,0.00019012,2]
[365847024,1749955771123,-168.93445009,0.00019816,2]
[365847042,1749955832068,-12.84612247,0.00019816,2]
[365847044,1749955832078,-186.085733,0.00020916,2]
[365847045,1749955832088,-500.0,0.00021154,2]
[365847047,1749955832097,-190.15019933,0.00021817,2]
[365847048,1749955832107,-690.72806361,0.000219,6]
[365847049,1749955832117,-207.4,0.00021903,2]
[365847050,1749955832126,-300.0,0.00021915,2]
[365847051,1749955832136,-393.62862467,0.00021916,2]
[365847052,1749955832150,-500.0,0.00021916,2]
[365847053,1749955832159,-500.0,0.00021916,2]
[365847054,1749955832169,-500.0,0.00021916,2]
[365847055,1749955832178,-500.0,0.00021916,2]
[365847056,1749955832189,-500.0,0.00021916,2]
[365847057,1749955832198,-500.0,0.00021916,2]
[365847058,1749955832208,-500.0,0.00021916,2]
[365847059,1749955832217,-500.0,0.00021916,2]
[365847060,1749955832227,-500.0,0.00021916,2]
[365847061,1749955832237,-500.0,0.00021916,2]
[365847062,1749955832246,-500.0,0.00021916,2]
[365847063,1749955832256,-500.0,0.00021916,2]
[365847064,1749955832266,-500.0,0.00021916,2]
[365847065,1749955832275,-500.0,0.00021916,2]
[365847066,1749955832284,-350.0,0.00021916,2]
[365847067,1749955832293,-514.8074548,0.00021916,2]
[365847068,1749955832302,-160.0,0.00021916,2]
[365847069,1749955832312,-500.0,0.00021917,4]
[365847070,1749955832322,-460.0,0.00021917,4]
[365847071,1749955832331,-403.66968796,0.00021917,4]
[365847072,1749955832340,-460.0,0.00021917,4]
[365847073,1749955832350,-290.0,0.00021917,4]
[365847074,1749955832360,-275.02419092,0.00021917,4]
[365847075,1749955832370,-460.0,0.00021917,4]
[365847076,1749955832379,-433.7705562,0.00021917,4]
[365847077,1749955832389,-441.00101755,0.00021917,4]
[365847078,1749955832398,-460.80674765,0.00021917,4]
[365847079,1749955832409,-456.94142993,0.00021917,4]
[365847080,1749955832419,-425.84289689,0.00021917,4]
[365847081,1749955832428,-434.38120057,0.00021917,4]
[365847082,1749955832438,-400.90046835,0.00021917,4]
[365847083,1749955832447,-404.39642225,0.00021917,4]
[365847084,1749955832457,-460.0,0.00021917,4]
[365847085,1749955832467,-435.42532117,0.00021917,4]
[365847086,1749955832476,-355.53101893,0.00021917,4]
[365847087,1749955832486,-464.70908873,0.00021917,4]
[365847088,1749955832495,-456.88633174,0.00021917,4]
[365847089,1749955832504,-461.56411624,0.00021917,4]
[365847090,1749955832514,-473.31769746,0.00021917,4]
[365847091,1749955832524,-460.0,0.00021917,4]
[365847092,1749955832534,-521.97829028,0.00021917,4]
[365847093,1749955832544,-460.0,0.00021917,4]
[365847094,1749955832554,-460.0,0.00021917,4]
[365847095,1749955832563,-460.0,0.00021917,4]
[365847096,1749955832573,-460.0,0.00021917,4]
[365847097,1749955832584,-460.0,0.00021917,4]
[365847098,1749955832594,-373.92075572,0.00021917,4]
[365847099,1749955832603,-460.0,0.00021917,4]
[365847100,1749955832612,-460.0,0.00021917,4]
[365847101,1749955832623,-455.85054968,0.00021917,4]
[365847102,1749955832632,-444.44234438,0.00021917,4]
[365847103,1749955832642,-441.28812256,0.00021917,4]
[365847104,1749955832651,-414.34736472,0.00021917,4]
[365847105,1749955832662,-434.90903611,0.00021917,4]
[365847106,1749955832672,-440.52908842,0.00021917,4]
[365847107,1749955832681,-556.31425497,0.00021917,4]
[365847108,1749955832690,-426.38748386,0.00021917,4]
[365847109,1749955832700,-436.15708759,0.00021917,4]
[365847110,1749955832710,-438.74313836,0.00021917,4]
[365847111,1749955832720,-341.38539279,0.00021917,4]
[365847112,1749955832729,-415.36212992,0.00021917,4]
[365847113,1749955832738,-460.0,0.00021917,4]
[365847114,1749955832748,-437.48988262,0.00021917,4]
[365847115,1749955832758,-233.60192639,0.00021917,4]
[365847116,1749955832767,-460.0,0.00021917,4]
[365847117,1749955832777,-460.0,0.00021917,4]
[365847118,1749955832786,-460.0,0.00021917,4]
[365847119,1749955832796,-460.0,0.00021917,4]
[365847120,1749955832806,-501.076996,0.00021917,4]
[365847121,1749955832816,-326.78342577,0.00021917,4]
[365847122,1749955832825,-460.0,0.00021917,4]
[365847123,1749955832835,-413.50436602,0.00021917,4]
[365847124,1749955832844,-444.99836327,0.00021917,4]
[365847125,1749955832854,-463.73984392,0.00021917,4]
[365847126,1749955832863,-475.94843183,0.00021917,4]
[365847127,1749955832872,-466.98053076,0.00021917,4]
[365847128,1749955832882,-454.73913236,0.00021917,4]
[365847129,1749955832892,-483.06685245,0.00021917,4]
[365847130,1749955832901,-443.45782665,0.00021917,4]
[365847131,1749955832911,-433.16174355,0.00021917,4]
[365847132,1749955832920,-475.38199753,0.00021917,4]
[365847133,1749955832929,-436.45493584,0.00021917,4]
[365847134,1749955832939,-460.0,0.00021917,4]
[365847135,1749955832948,-460.0,0.00021917,4]
[365847136,1749955832957,-444.01645113,0.00021917,4]
[365847137,1749955832967,-435.42242992,0.00021917,4]
[365847138,1749955832976,-460.0,0.00021917,4]
[365847139,1749955832985,-401.88057392,0.00021917,4]
[365847140,1749955832995,-404.89557746,0.00021917,4]
[365847141,1749955833162,-437.75359969,0.00021917,4]
[365847142,1749955833173,-460.0,0.00021917,4]
[365847143,1749955833183,-474.62721827,0.00021917,4]
[365847144,1749955833192,-446.22606747,0.00021917,4]
[365847145,1749955833202,-437.54907532,0.00021917,4]
[365847146,1749955833212,-460.0,0.00021917,4]
[365847147,1749955833221,-439.66123219,0.00021917,4]
[365847148,1749955833230,-406.85167839,0.00021917,4]
[365847149,1749955833239,-460.0,0.00021917,4]
[365847150,1749955833249,-362.67411085,0.00021917,4]
[365847151,1749955833258,-435.28217042,0.00021917,4]
[365847152,1749955833279,-420.94797033,0.00021917,4]
[365847153,1749955833290,-432.42281114,0.00021917,4]
[365847154,1749955833300,-432.09851742,0.00021917,4]
[365847155,1749955833310,-344.02406147,0.00021917,4]
[365847156,1749955833321,-436.3378907,0.00021917,4]
[365847157,1749955833332,-436.30786552,0.00021917,4]
[365847158,1749955833342,-435.04287254,0.00021917,4]
[365847159,1749955833353,-408.78867569,0.00021917,4]
[365847160,1749955833363,-305.79817633,0.00021917,4]
[365847161,1749955833374,-434.08880575,0.00021917,4]
[365847162,1749955833384,-460.0,0.00021917,4]
[365847163,1749955833394,-442.3166561,0.00021917,4]
[365847164,1749955833404,-460.0,0.00021917,4]
[365847165,1749955833414,-511.78356391,0.00021917,4]
[365847166,1749955833424,-460.0,0.00021917,4]
[365847167,1749955833435,-431.87341158,0.00021917,4]
[365847168,1749955833444,-432.84703209,0.00021917,4]
[365847169,1749955833454,-434.38804165,0.00021917,4]
[365847170,1749955833464,-460.0,0.00021917,4]
[365847171,1749955833474,-448.9467144,0.00021917,4]
[365847172,1749955833484,-441.69530689,0.00021917,4]
[365847173,1749955833494,-234.00110314,0.00021917,4]
[365847174,1749955833505,-433.05211555,0.00021917,4]
[365847175,1749955833514,-444.38118601,0.00021917,4]
[365847176,1749955833525,-460.0,0.00021917,4]
[365847177,1749955833535,-460.0,0.00021917,4]
[365847178,1749955833545,-460.0,0.00021917,4]
[365847179,1749955833555,-432.97973682,0.00021917,4]
[365847180,1749955833565,-460.0,0.00021917,4]
[365847181,1749955833575,-470.878404,0.00021917,4]
[365847182,1749955833585,-436.46365183,0.00021917,4]
[365847183,1749955833595,-414.96475332,0.00021917,4]
[365847184,1749955833604,-452.35355219,0.00021917,4]
[365847185,1749955833614,-460.0,0.00021917,4]
[365847186,1749955833625,-460.0,0.00021917,4]
[365847187,1749955833635,-460.0,0.00021917,4]
[365847188,1749955833644,-460.0,0.00021917,4]
[365847189,1749955833654,-330.10578544,0.00021917,4]
[365847190,1749955833663,-401.36881582,0.00021917,4]
[365847191,1749955833673,-507.97118282,0.00021917,4]
[365847192,1749955833683,-460.0,0.00021917,4]
[365847193,1749955833693,-160.63872499,0.00021917,4]
[365847194,1749955833704,-460.0,0.00021917,4]
[365847195,1749955833713,-413.65084547,0.00021917,4]
[365847196,1749955833723,-460.0,0.00021917,4]
[365847197,1749955833733,-401.67523486,0.00021917,4]
[365847198,1749955833743,-564.68152323,0.00021917,4]
[365847199,1749955833753,-460.0,0.00021917,4]
[365847200,1749955833763,-406.29024175,0.00021917,4]
[365847201,1749955833772,-450.22405757,0.00021917,4]
[365847202,1749955833783,-460.0,0.00021917,4]
[365847203,1749955833794,-460.0,0.00021917,4]
[365847204,1749955833804,-440.75922777,0.00021917,4]
[365847205,1749955833813,-460.0,0.00021917,4]
[365847206,1749955833823,-460.0,0.00021917,4]
[365847207,1749955833833,-460.0,0.00021917,4]
[365847208,1749955833844,-441.84829069,0.00021917,4]
[365847209,1749955833854,-404.31176605,0.00021917,4]
[365847210,1749955833864,-460.0,0.00021917,4]
[365847211,1749955833874,-462.03811512,0.00021917,4]
[365847212,1749955833884,-466.78426127,0.00021917,4]
[365847213,1749955833894,-460.0,0.00021917,4]
[365847214,1749955833904,-460.0,0.00021917,4]
[365847215,1749955833914,-209.49543788,0.00021917,4]
[365847216,1749955833924,-422.74614835,0.00021917,4]
[365847217,1749955833934,-460.0,0.00021917,4]
[365847218,1749955833944,-460.0,0.00021917,4]
[365847219,1749955833954,-460.0,0.00021917,4]
[365847220,1749955833964,-460.0,0.00021917,4]
[365847221,1749955833974,-472.10707998,0.00021917,4]
[365847222,1749955833983,-460.0,0.00021917,4]
[365847223,1749955833993,-460.0,0.00021917,4]
[365847224,1749955834003,-460.54665427,0.00021917,4]
[365847225,1749955834013,-489.3960794,0.00021917,4]
[365847226,1749955834023,-445.95949442,0.00021917,4]
[365847227,1749955834032,-508.26281606,0.00021917,4]
[365847228,1749955834042,-451.55096451,0.00021917,4]
[365847229,1749955834052,-562.63,0.00021917,4]